[Event "95th Caplin Hastings Congress"]
[Site "Hastings"]
[Date "2020.01.04"]
[Round "8.29"]
[White "Okhai, Shabir"]
[Black "Wall, Tim P"]
[Result "0-1"]
[ECO "C90"]
[WhiteElo "2103"]
[BlackElo "2218"]
[Annotator "ChessBase"]
[PlyCount "132"]
[EventDate "2019.12.28"]
[EventType "swiss"]
[EventCountry "ENG"]
[SourceTitle "playchess.com"]
[Source "ChessBase"]
[SourceQuality "1"]
[TimeControl "40/6600+30:3000+30"]

1. e4 {[%emt 0:09:46]} e5 {[%emt 0:09:46]} 2. Nf3 {[%emt 0:00:05]} Nc6 {[%emt 0:00:14]} 3. Bc4 {[%emt 0:00:06]} Nf6 {[%emt 0:00:11]} 4. d3 {[%emt 0:00:45]} Be7 {[%emt 0:00:13]} 5. O-O {[%emt 0:00:25]} O-O {[%emt 0:00:10]} 6. Re1 {[%emt 0:00:08]} d6 {[%emt 0:00:10]} 7. c3 {[%emt 0:00:45]} Na5 {[%emt 0:01:59]} 8. Bb5 {[%emt 0:03:34]} a6 {[%emt 0:00:21]} 9. Ba4 {[%emt 0:00:05]} b5 {[%emt 0:00:11]} 10. Bc2 {[%emt 0:00:02]} c5 {[%emt 0:00:15]} 11. Nbd2 {[%emt 0:01:15]} Qc7 {[%emt 0:01:04]} 12. Nf1 {[%emt 0:00:50]} Re8 {[%emt 0:13:35]} 13. Ng3 {[%emt 0:00:43]} g6 {[%emt 0:03:00]} 14. Bg5 {[%emt 0:01:59]} Nd7 {[%emt 0:03:55]} 15. Bxe7 {[%emt 0:03:57]} Rxe7 {[%emt 0:00:09]} 16. Qd2 {[%emt 0:03:12]} Nf8 {[%emt 0:03:02]} 17. h3 {[%emt 0:08:36]} Ne6 {[%emt 0:05:38]} 18. Nh2 {[%emt 0:02:24]} Qd8 {[%emt 0:06:41]} 19. Ng4 {[%emt 0:05:17]} Rc7 {[%emt 0:02:19]} 20. Rad1 {[%emt 0:10:12]} Nf4 {[%emt 0:06:15]} 21. Ne3 {[%emt 0:11:08]} Be6 {[%emt 0:04:39]} 22. Bb1 {[%emt 0:08:55]} Qg5 {[%emt 0:05:23]} 23. Nd5 {[%emt 0:05:20]} Bxd5 {[%emt 0:04:42]} 24. exd5 {[%emt 0:00:57]} h5 {[%emt 0:12:14]} 25. Kh2 {[%emt 0:01:31]} h4 {[%emt 0:04:01]} 26. Rg1 {[%emt 0:00:39]} hxg3+ {[%emt 0:00:49]} 27. fxg3 {[%emt 0:00:08]} Nxh3 {[%emt 0:06:09]} 28. gxh3 {[%emt 0:00:09]} Qxd2+ {[%emt 0:00:18]} 29. Rxd2 {[%emt 0:00:02]} b4 {[%emt 0:00:51]} 30. Bc2 {[%emt 0:05:19]} bxc3 {[%emt 0:03:52]} 31. bxc3 {[%emt 0:00:21]} Rb8 {[%emt 0:01:01]} 32. Ba4 {[%emt 0:08:22]} Rcb7 {[%emt 0:02:11]} 33. g4 {[%emt 0:03:37]} f6 {[%emt 0:12:16]} 34. h4 {[%emt 0:03:25]} c4 {[%emt 0:03:23]} 35. d4 {[%emt 0:03:30]} exd4 {[%emt 0:01:16]} 36. Rxd4 {[%emt 0:01:42]} Rb2+ {[%emt 0:00:49]} 37. Rg2 {[%emt 0:01:19]} Rxg2+ {[%emt 0:00:10]} 38. Kxg2 {[%emt 0:00:02]} Rb2+ {[%emt 0:00:22]} 39. Kf3 {[%emt 0:01:18]} Rxa2 {[%emt 0:00:28]} 40. Be8 {[%emt 0:05:33]} Ra3 {[%emt 0:02:38]} 41. Bxg6 {[%emt 0:54:57]} Rxc3+ {[%emt 0:52:08]} 42. Kf4 {[%emt 0:00:00]} Nb3 {[%emt 0:00:00]} 43. Rd1 {[%emt 0:00:00]} Nc5 {[%emt 0:00:00]} 44. h5 {[%emt 0:00:00]} Kg7 {[%emt 0:00:00]} 45. Rd2 {[%emt 0:00:00]} Rb3 {[%emt 0:00:00]} 46. Re2 {[%emt 0:00:00]} Nd3+ {[%emt 0:00:00]} 47. Kf5 {[%emt 0:00:00]} Ne5 {[%emt 0:00:00]} 48. h6+ {[%emt 0:00:00]} Kxh6 {[%emt 0:00:00]} 49. Rh2+ {[%emt 0:00:00]} Kg7 {[%emt 0:00:00]} 50. Rh7+ {[%emt 0:00:00]} Kg8 {[%emt 0:00:00]} 51. Kxf6 {[%emt 0:00:00]} Rf3+ {[%emt 0:00:00]} 52. Kg5 {[%emt 0:00:00]} Rf4 {[%emt 0:04:02]} 53. Rh4 {[%emt 0:00:00]} Rd4 {[%emt 0:00:46]} 54. Kf6 {[%emt 0:00:00]} Nxg6 {[%emt 0:00:17]} 55. Kxg6 {[%emt 0:00:00]} c3 {[%emt 0:00:13]} 56. Rh1 {[%emt 0:00:44]} Rxd5 {[%emt 0:00:38]} 57. Rc1 {[%emt 0:01:26]} Rc5 {[%emt 0:01:52]} 58. Kf6 {[%emt 0:02:01]} a5 {[%emt 0:00:59]} 59. Ke6 {[%emt 0:01:13]} a4 {[%emt 0:00:30]} 60. Kxd6 {[%emt 0:00:07]} Rc8 {[%emt 0:00:09]} 61. Kd5 {[%emt 0:01:28]} c2 {[%emt 0:00:32]} 62. Kd4 {[%emt 0:00:23]} a3 {[%emt 0:00:09]} 63. Kd3 {[%emt 0:00:05]} a2 {[%emt 0:00:04]} 64. Kd2 {[%emt 0:00:54]} Kg7 {[%emt 0:00:26]} 65. Rxc2 {[%emt 0:01:28]} Rxc2+ {[%emt 0:00:15]} 66. Ke1 {[%emt 0:00:04]} a1=Q# {[%emt 0:00:12]} 0-1

[Event "95th Caplin Hastings Congress"]
[Site "Hastings"]
[Date "2020.01.04"]
[Round "8.30"]
[White "Pekin, Tolgay"]
[Black "Ratnesan, Ranesh"]
[Result "0-1"]
[ECO "B52"]
[WhiteElo "2080"]
[BlackElo "2252"]
[Annotator "ChessBase"]
[PlyCount "132"]
[EventDate "2019.12.28"]
[EventType "swiss"]
[EventCountry "ENG"]
[SourceTitle "playchess.com"]
[Source "ChessBase"]
[SourceQuality "1"]
[TimeControl "40/6600+30:3000+30"]

1. e4 {[%emt 0:09:34]} c5 {[%emt 0:09:48]} 2. Nf3 {[%emt 0:00:20]} d6 {[%emt 0:00:09]} 3. Bb5+ {[%emt 0:00:12]} Bd7 {[%emt 0:00:09]} 4. Bxd7+ {[%emt 0:00:11]} Nxd7 {[%emt 0:00:10]} 5. O-O {[%emt 0:00:26]} Ngf6 {[%emt 0:00:10]} 6. Qe2 {[%emt 0:00:38]} Rc8 {[%emt 0:00:08]} 7. c3 {[%emt 0:00:35]} e6 {[%emt 0:05:34]} 8. d4 {[%emt 0:01:06]} cxd4 {[%emt 0:04:52]} 9. cxd4 {[%emt 0:01:23]} d5 {[%emt 0:00:42]} 10. e5 {[%emt 0:01:25]} Ne4 {[%emt 0:01:54]} 11. Be3 {[%emt 0:01:37]} Be7 {[%emt 0:26:17]} 12. Ne1 {[%emt 0:04:15]} f5 {[%emt 0:01:52]} 13. f3 {[%emt 0:07:34]} Ng5 {[%emt 0:00:17]} 14. Nc3 {[%emt 0:03:43]} O-O {[%emt 0:02:24]} 15. Nd3 {[%emt 0:04:46]} Nb6 {[%emt 0:03:51]} 16. Rac1 {[%emt 0:09:59]} Nc4 {[%emt 0:10:03]} 17. Bf2 {[%emt 0:06:10]} b6 {[%emt 0:01:49]} 18. Nf4 {[%emt 0:22:04]} Qd7 {[%emt 0:01:24]} 19. Rc2 {[%emt 0:15:12]} Rc6 {[%emt 0:07:51]} 20. Rfc1 {[%emt 0:04:13]} Rfc8 {[%emt 0:00:44]} 21. Qd3 {[%emt 0:04:05]} Nf7 {[%emt 0:13:14]} 22. Ncxd5 {[%emt 0:03:59]} exd5 {[%emt 0:00:55]} 23. e6 {[%emt 0:00:55]} Rxe6 {[%emt 0:00:32]} 24. Nxe6 {[%emt 0:07:10]} Qxe6 {[%emt 0:00:03]} 25. b3 {[%emt 0:02:19]} Ncd6 {[%emt 0:00:10]} 26. Rxc8+ {[%emt 0:02:43]} Nxc8 {[%emt 0:00:06]} 27. Qb5 {[%emt 0:02:01]} Nfd6 {[%emt 0:02:32]} 28. Qc6 {[%emt 0:00:25]} f4 {[%emt 0:09:17]} 29. Re1 {[%emt 0:00:35]} Qf7 {[%emt 0:00:40]} 30. Re5 {[%emt 0:01:10]} Bf8 {[%emt 0:01:53]} 31. Bh4 {[%emt 0:01:14]} Nf5 {[%emt 0:05:23]} 32. Bd8 {[%emt 0:00:58]} Ncd6 {[%emt 0:03:44]} 33. Qxd5 {[%emt 0:01:16]} Qxd5 {[%emt 0:00:26]} 34. Rxd5 {[%emt 0:00:03]} h6 {[%emt 0:02:32]} 35. Bc7 {[%emt 0:00:44]} Kf7 {[%emt 0:01:26]} 36. Bxd6 {[%emt 0:01:06]} Nxd6 {[%emt 0:00:10]} 37. Re5 {[%emt 0:00:20]} Kf6 {[%emt 0:01:28]} 38. Kf1 {[%emt 0:00:54]} Nf5 {[%emt 0:01:22]} 39. Re8 {[%emt 0:00:25]} Bd6 {[%emt 0:01:29]} 40. Ra8 {[%emt 0:00:59]} a5 {[%emt 0:01:42]} 41. Rd8 {[%emt 0:01:37]} Ke7 {[%emt 0:05:09]} 42. Rg8 {[%emt 0:03:00]} Kf7 {[%emt 0:00:17]} 43. Rd8 {[%emt 0:01:01]} Ke6 {[%emt 0:00:22]} 44. Ke2 {[%emt 0:03:51]} Nxd4+ {[%emt 0:07:31]} 45. Kd3 {[%emt 0:04:07]} Nc6 {[%emt 0:00:57]} 46. Re8+ {[%emt 0:00:43]} Kd5 {[%emt 0:00:34]} 47. a4 {[%emt 0:08:38]} Nd4 {[%emt 0:11:26]} 48. Kc3 {[%emt 0:01:12]} Nf5 {[%emt 0:05:16]} 49. Kd3 {[%emt 0:11:01]} Nd4 {[%emt 0:00:10]} 50. Kc3 {[%emt 0:00:21]} Ne6 {[%emt 0:00:49]} 51. Kd3 {[%emt 0:02:32]} Be5 {[%emt 0:01:20]} 52. Rc8 {[%emt 0:03:36]} g5 {[%emt 0:03:48]} 53. Rg8 {[%emt 0:02:20]} h5 {[%emt 0:03:26]} 54. Rc8 {[%emt 0:02:31]} g4 {[%emt 0:01:28]} 55. Rg8 {[%emt 0:01:36]} g3 {[%emt 0:01:49]} 56. h3 {[%emt 0:00:51]} Nc5+ {[%emt 0:00:22]} 57. Kc2 {[%emt 0:00:38]} Kd4 {[%emt 0:10:00]} 58. Re8 {[%emt 0:03:20]} h4 {[%emt 0:01:03]} 59. Kd1 {[%emt 0:02:39]} Nxb3 {[%emt 0:00:17]} 60. Re6 {[%emt 0:00:13]} Nc5 {[%emt 0:01:15]} 61. Rxb6 {[%emt 0:00:34]} Nxa4 {[%emt 0:00:05]} 62. Rh6 {[%emt 0:00:38]} Nc3+ {[%emt 0:00:34]} 63. Kc2 {[%emt 0:01:07]} Nd5 {[%emt 0:00:51]} 64. Rxh4 {[%emt 0:01:20]} Ne3+ {[%emt 0:00:06]} 65. Kb3 {[%emt 0:00:58]} Nxg2 {[%emt 0:00:09]} 66. Rg4 {[%emt 0:01:11]} Ke3 {[%emt 0:01:33]} 0-1

[Event "95th Caplin Hastings Congress"]
[Site "Hastings"]
[Date "2020.01.04"]
[Round "8.31"]
[White "McNally, Richard J E"]
[Black "Gallagher, Daniel GH"]
[Result "0-1"]
[ECO "A45"]
[WhiteElo "1967"]
[BlackElo "2171"]
[Annotator "NA"]
[PlyCount "128"]
[EventDate "2019.12.28"]
[EventType "swiss"]
[EventCountry "ENG"]
[SourceTitle "playchess.com"]
[Source "ChessBase"]
[SourceQuality "1"]
[TimeControl "40/6600+30:3000+30"]

1. d4 {[%emt 0:09:37]} Nf6 {[%emt 0:09:46]} 2. f3 {[%emt 0:00:23]} d5 {[%emt 0:01:10]} 3. e4 {[%emt 0:00:18]} e6 {[%emt 0:00:18]} 4. e5 {[%emt 0:00:45]} Nfd7 {[%emt 0:00:16]} 5. f4 {[%emt 0:00:41]} c5 {[%emt 0:00:06]} 6. Nf3 {[%emt 0:01:13]} Nc6 {[%emt 0:02:27]} 7. a3 {[%emt 0:00:35]} cxd4 {[%emt 0:14:01]} 8. b4 {[%emt 0:00:11]} a6 {[%emt 0:00:23]} 9. Bd3 {[%emt 0:00:28]} b5 {[%emt 0:22:57]} 10. Bb2 {[%emt 0:02:08]} Bb7 {[%emt 0:16:34]} 11. Nxd4 {[%emt 0:00:53]} Qb6 {[%emt 0:01:13]} 12. Nxc6 {[%emt 0:00:57]} Bxc6 {[%emt 0:00:47]} 13. Qe2 {[%emt 0:00:45]} a5 {[%emt 0:02:42]} 14. Nc3 {[%emt 0:08:52]} axb4 {[%emt 0:07:06]} 15. Nxb5 {[%emt 0:00:15]} Bxb5 {[%emt 0:00:13]} 16. Bxb5 {[%emt 0:00:09]} bxa3 {[%emt 0:00:06]} 17. Bc3 {[%emt 0:08:03]} Bc5 {[%emt 0:03:32]} 18. g3 {[%emt 0:01:59]} Ra7 {[%emt 0:02:27]} 19. Kf1 {[%emt 0:01:34]} O-O {[%emt 0:03:29]} 20. Kg2 {[%emt 0:01:53]} Bd4 {[%emt 0:07:38]} 21. Bxd4 {[%emt 0:01:09]} Qxd4 {[%emt 0:00:04]} 22. Bxd7 {[%emt 0:00:17]} Rxd7 {[%emt 0:00:05]} 23. Rxa3 {[%emt 0:00:15]} Rc7 {[%emt 0:00:03]} 24. Rd3 {[%emt 0:06:14]} Qb2 {[%emt 0:00:47]} 25. Rd2 {[%emt 0:00:55]} Rc3 {[%emt 0:01:20]} 26. Rf1 {[%emt 0:01:05]} Rfc8 {[%emt 0:03:02]} 27. Rf2 {[%emt 0:00:13]} Qb6 {[%emt 0:00:57]} 28. f5 {[%emt 0:02:36]} exf5 {[%emt 0:04:01]} 29. Rxf5 {[%emt 0:00:27]} Qe6 {[%emt 0:00:17]} 30. Qf2 {[%emt 0:00:57]} h6 {[%emt 0:02:00]} 31. Rf4 {[%emt 0:04:36]} R8c7 {[%emt 0:01:36]} 32. Rfd4 {[%emt 0:02:15]} R3c5 {[%emt 0:04:15]} 33. Qe2 {[%emt 0:01:52]} Qf5 {[%emt 0:04:36]} 34. Qd3 {[%emt 0:01:54]} Qxe5 {[%emt 0:02:52]} 35. c4 {[%emt 0:04:32]} Rxc4 {[%emt 0:01:25]} 36. Rxd5 {[%emt 0:00:49]} Qe4+ {[%emt 0:00:23]} 37. Qxe4 {[%emt 0:00:44]} Rxe4 {[%emt 0:00:04]} 38. Rf2 {[%emt 0:01:16]} f6 {[%emt 0:00:50]} 39. Rdd2 {[%emt 0:00:25]} Kh7 {[%emt 0:00:16]} 40. Ra2 {[%emt 0:00:21]} Kg6 {[%emt 0:00:16]} 41. Rab2 {[%emt 0:51:23]} h5 {[%emt 0:52:42]} 42. h4 {[%emt 0:01:24]} Rce7 {[%emt 0:00:00]} 43. Ra2 {[%emt 0:00:00]} Rg4 {[%emt 0:00:00]} 44. Ra3 {[%emt 0:00:00]} Rf7 {[%emt 0:00:00]} 45. Ra6 {[%emt 0:00:00]} Kh7 {[%emt 0:00:00]} 46. Ra5 {[%emt 0:00:00]} g6 {[%emt 0:00:00]} 47. Ra6 {[%emt 0:00:00]} f5 {[%emt 0:00:00]} 48. Kh3 {[%emt 0:00:00]} Re7 {[%emt 0:00:00]} 49. Rf3 {[%emt 0:00:00]} Re2 {[%emt 0:00:00]} 50. Ra7+ {[%emt 0:00:00]} Kh6 {[%emt 0:00:00]} 51. Ra6 {[%emt 0:00:00]} Rd4 {[%emt 0:00:00]} 52. Ra1 {[%emt 0:00:00]} Rdd2 {[%emt 0:00:00]} 53. Rh1 {[%emt 0:00:00]} Kg7 {[%emt 0:00:00]} 54. Ra3 {[%emt 0:00:00]} Rf2 {[%emt 0:00:00]} 55. Ra4 {[%emt 0:00:00]} Rd3 {[%emt 0:00:00]} 56. Rh2 {[%emt 0:00:00]} Rff3 {[%emt 0:00:00]} 57. Rg2 {[%emt 0:00:00]} f4 {[%emt 0:00:00]} 58. Kh2 {[%emt 0:00:00]} Rxg3 {[%emt 0:00:00]} 59. Rxg3 {[%emt 0:00:00]} fxg3+ {[%emt 0:00:00]} 60. Kg2 {[%emt 0:00:00]} g5 {[%emt 0:00:00]} 61. hxg5 {[%emt 0:00:00]} Kg6 {[%emt 0:00:00]} 62. Ra5 {[%emt 0:00:00]} h4 {[%emt 0:00:00]} 63. Ra4 {[%emt 0:00:00]} Rd2+ {[%emt 0:01:25]} 64. Kh3 {[%emt 0:00:00]} Rh2+ {[%emt 0:00:07]} 0-1

[Event "95th Caplin Hastings Congress"]
[Site "Hastings"]
[Date "2020.01.04"]
[Round "8.32"]
[White "Graham, David B"]
[Black "Comellas Blanchart, Jordi"]
[Result "1/2-1/2"]
[ECO "B92"]
[WhiteElo "2152"]
[BlackElo "2125"]
[Annotator "ChessBase"]
[PlyCount "122"]
[EventDate "2019.12.28"]
[EventType "swiss"]
[EventCountry "ENG"]
[SourceTitle "playchess.com"]
[Source "ChessBase"]
[SourceQuality "1"]
[TimeControl "40/6600+30:3000+30"]

1. e4 {[%emt 0:09:32]} c5 {[%emt 0:09:38]} 2. Nf3 {[%emt 0:00:04]} d6 {[%emt 0:00:08]} 3. d4 {[%emt 0:00:05]} cxd4 {[%emt 0:00:08]} 4. Nxd4 {[%emt 0:00:02]} Nf6 {[%emt 0:00:12]} 5. Nc3 {[%emt 0:00:03]} a6 {[%emt 0:00:08]} 6. Be2 {[%emt 0:00:31]} e5 {[%emt 0:00:09]} 7. Nb3 {[%emt 0:00:12]} Be7 {[%emt 0:00:08]} 8. O-O {[%emt 0:00:24]} O-O {[%emt 0:00:09]} 9. Be3 {[%emt 0:00:56]} Be6 {[%emt 0:00:08]} 10. Nd5 {[%emt 0:02:40]} Nbd7 {[%emt 0:03:30]} 11. f3 {[%emt 0:02:11]} Nxd5 {[%emt 0:05:12]} 12. exd5 {[%emt 0:00:04]} Bf5 {[%emt 0:00:16]} 13. Qd2 {[%emt 0:02:05]} Rc8 {[%emt 0:03:37]} 14. c4 {[%emt 0:01:25]} b6 {[%emt 0:03:19]} 15. c5 {[%emt 0:12:51]} Nxc5 {[%emt 0:01:00]} 16. Nxc5 {[%emt 0:00:32]} dxc5 {[%emt 0:07:14]} 17. Bxa6 {[%emt 0:00:10]} Rc7 {[%emt 0:02:29]} 18. a4 {[%emt 0:09:53]} Qa8 {[%emt 0:20:24]} 19. Bc4 {[%emt 0:01:17]} Rd8 {[%emt 0:02:49]} 20. a5 {[%emt 0:23:52]} Ra7 {[%emt 0:12:34]} 21. Bg5 {[%emt 0:11:36]} Bf6 {[%emt 0:02:53]} 22. Bxf6 {[%emt 0:03:02]} gxf6 {[%emt 0:00:07]} 23. Qh6 {[%emt 0:08:07]} Rd6 {[%emt 0:16:40]} 24. f4 {[%emt 0:02:29]} e4 {[%emt 0:00:41]} 25. Ra3 {[%emt 0:01:58]} b5 {[%emt 0:07:13]} 26. Bxb5 {[%emt 0:04:35]} Rxa5 {[%emt 0:02:28]} 27. Rg3+ {[%emt 0:05:21]} Bg6 {[%emt 0:00:10]} 28. Bc4 {[%emt 0:01:48]} f5 {[%emt 0:00:30]} 29. h4 {[%emt 0:03:43]} Qf8 {[%emt 0:04:34]} 30. Qh5 {[%emt 0:01:31]} Qg7 {[%emt 0:01:46]} 31. Qd1 {[%emt 0:02:49]} h5 {[%emt 0:01:19]} 32. Kh2 {[%emt 0:01:38]} Qxb2 {[%emt 0:00:44]} 33. Qxh5 {[%emt 0:01:54]} Ra3 {[%emt 0:05:33]} 34. Qe2 {[%emt 0:00:50]} Qxe2 {[%emt 0:01:19]} 35. Bxe2 {[%emt 0:00:04]} Rxg3 {[%emt 0:00:36]} 36. Kxg3 {[%emt 0:00:14]} Rxd5 {[%emt 0:00:22]} 37. h5 {[%emt 0:00:32]} Bh7 {[%emt 0:01:43]} 38. Ra1 {[%emt 0:01:16]} Rd8 {[%emt 0:02:32]} 39. Ra7 {[%emt 0:00:36]} Rc8 {[%emt 0:00:00]} 40. Bc4 {[%emt 0:00:07]} Kh8 {[%emt 0:00:43]} 41. Bxf7 {[%emt 0:12:22]} Bg8 {[%emt 0:13:50]} 42. Kf2 {[%emt 0:01:37]} c4 {[%emt 0:01:02]} 43. Bxg8 {[%emt 0:03:36]} Kxg8 {[%emt 0:01:16]} 44. Ke2 {[%emt 0:02:21]} c3 {[%emt 0:13:09]} 45. Kd1 {[%emt 0:00:40]} c2+ {[%emt 0:00:43]} 46. Kc1 {[%emt 0:00:04]} Rc5 {[%emt 0:00:36]} 47. Re7 {[%emt 0:05:52]} Ra5 {[%emt 0:07:04]} 48. Re5 {[%emt 0:02:45]} Ra1+ {[%emt 0:00:50]} 49. Kxc2 {[%emt 0:00:04]} Ra2+ {[%emt 0:00:12]} 50. Kc3 {[%emt 0:00:10]} Rxg2 {[%emt 0:00:31]} 51. Rxf5 {[%emt 0:00:08]} Ra2 {[%emt 0:00:20]} 52. Kd4 {[%emt 0:01:36]} Ra4+ {[%emt 0:00:36]} 53. Ke3 {[%emt 0:02:30]} Kg7 {[%emt 0:00:33]} 54. Re5 {[%emt 0:00:23]} Kh6 {[%emt 0:00:38]} 55. Rxe4 {[%emt 0:00:17]} Ra3+ {[%emt 0:00:06]} 56. Kd4 {[%emt 0:00:07]} Kxh5 {[%emt 0:00:15]} 57. Ke5 {[%emt 0:01:58]} Kg6 {[%emt 0:00:38]} 58. Rb4 {[%emt 0:02:00]} Ra5+ {[%emt 0:00:53]} 59. Ke4 {[%emt 0:00:17]} Kf6 {[%emt 0:00:16]} 60. Rb6+ {[%emt 0:00:05]} Kf7 {[%emt 0:00:06]} 61. f5 {[%emt 0:00:27]} Ra1 {[%emt 0:00:11]} 1/2-1/2

[Event "95th Caplin Hastings Congress"]
[Site "Hastings"]
[Date "2020.01.04"]
[Round "8.33"]
[White "Eames, Robert S"]
[Black "Akeya-Price, Robert"]
[Result "1-0"]
[ECO "B12"]
[WhiteElo "2150"]
[BlackElo "1818"]
[Annotator "ChessBase"]
[PlyCount "113"]
[EventDate "2019.12.28"]
[EventType "swiss"]
[EventCountry "ENG"]
[SourceTitle "playchess.com"]
[Source "ChessBase"]
[SourceQuality "1"]
[TimeControl "40/6600+30:3000+30"]

1. e4 {[%emt 0:09:35]} c6 {[%emt 0:09:35]} 2. d4 {[%emt 0:00:16]} d5 {[%emt 0:00:06]} 3. e5 {[%emt 0:00:07]} c5 {[%emt 0:00:05]} 4. dxc5 {[%emt 0:00:07]} e6 {[%emt 0:00:16]} 5. a3 {[%emt 0:00:17]} Bxc5 {[%emt 0:00:32]} 6. b4 {[%emt 0:00:25]} Be7 {[%emt 0:00:40]} 7. Nf3 {[%emt 0:01:11]} a5 {[%emt 0:01:15]} 8. b5 {[%emt 0:01:11]} Nd7 {[%emt 0:01:03]} 9. Bd3 {[%emt 0:02:07]} Qc7 {[%emt 0:04:43]} 10. Qe2 {[%emt 0:00:27]} Nh6 {[%emt 0:02:50]} 11. Bxh6 {[%emt 0:01:48]} gxh6 {[%emt 0:00:02]} 12. O-O {[%emt 0:00:29]} b6 {[%emt 0:04:34]} 13. Nbd2 {[%emt 0:02:16]} Bb7 {[%emt 0:02:05]} 14. c4 {[%emt 0:01:24]} Nc5 {[%emt 0:01:49]} 15. cxd5 {[%emt 0:03:36]} Bxd5 {[%emt 0:01:09]} 16. Bc4 {[%emt 0:05:58]} O-O-O {[%emt 0:02:33]} 17. Bxd5 {[%emt 0:02:21]} Rxd5 {[%emt 0:03:01]} 18. Rac1 {[%emt 0:00:18]} Kb8 {[%emt 0:09:35]} 19. Rc4 {[%emt 0:20:51]} Qd7 {[%emt 0:13:18]} 20. a4 {[%emt 0:06:06]} Rd8 {[%emt 0:15:00]} 21. Ne4 {[%emt 0:00:38]} Rd1 {[%emt 0:04:23]} 22. g3 {[%emt 0:04:44]} Rd3 {[%emt 0:05:57]} 23. Nd6 {[%emt 0:14:41]} Bxd6 {[%emt 0:16:43]} 24. exd6 {[%emt 0:04:01]} Qxd6 {[%emt 0:01:07]} 25. Ne5 {[%emt 0:00:37]} Qd5 {[%emt 0:00:45]} 26. Rf4 {[%emt 0:05:41]} Rd2 {[%emt 0:03:01]} 27. Nc6+ {[%emt 0:06:46]} Kc7 {[%emt 0:02:18]} 28. Qg4 {[%emt 0:01:05]} Rf8 {[%emt 0:08:27]} 29. Qg7 {[%emt 0:03:00]} Nd7 {[%emt 0:01:55]} 30. Rxf7 {[%emt 0:08:23]} Rxf7 {[%emt 0:00:06]} 31. Qxf7 {[%emt 0:00:05]} Rd1 {[%emt 0:00:57]} 32. Qxh7 {[%emt 0:07:19]} Rxf1+ {[%emt 0:00:10]} 33. Kxf1 {[%emt 0:00:04]} Qd1+ {[%emt 0:00:50]} 34. Kg2 {[%emt 0:00:05]} Qxa4 {[%emt 0:00:33]} 35. Qd3 {[%emt 0:00:26]} Qa2 {[%emt 0:01:22]} 36. Nd4 {[%emt 0:03:05]} Qd5+ {[%emt 0:00:35]} 37. f3 {[%emt 0:00:07]} a4 {[%emt 0:02:04]} 38. Qc2+ {[%emt 0:00:38]} Nc5 {[%emt 0:00:19]} 39. Qh7+ {[%emt 0:01:46]} Qd7 {[%emt 0:02:00]} 40. Qh8 {[%emt 0:00:05]} a3 {[%emt 0:01:04]} 41. Nc6 {[%emt 0:51:12]} Qd2+ {[%emt 0:12:26]} 42. Kh3 {[%emt 0:00:00]} Nd7 {[%emt 0:00:35]} 43. Qd8+ {[%emt 0:00:00]} Kb7 {[%emt 0:01:40]} 44. Ne7 {[%emt 0:00:00]} Qc2 {[%emt 0:27:59]} 45. Qxd7+ {[%emt 0:00:00]} Ka8 {[%emt 0:00:12]} 46. Qxe6 {[%emt 0:00:00]} Qc7 {[%emt 0:07:50]} 47. Nd5 {[%emt 0:00:00]} Qb7 {[%emt 0:01:11]} 48. Ne7 {[%emt 0:00:00]} Qa7 {[%emt 0:01:10]} 49. Nc6 {[%emt 0:00:00]} Qc7 {[%emt 0:00:29]} 50. g4 {[%emt 0:00:00]} Kb7 {[%emt 0:00:58]} 51. Qd5 {[%emt 0:00:00]} Kc8 {[%emt 0:00:32]} 52. Nb4 {[%emt 0:00:00]} Qf4 {[%emt 0:01:22]} 53. Qc6+ {[%emt 0:00:00]} Kd8 {[%emt 0:00:18]} 54. Qa8+ {[%emt 0:00:00]} Kd7 {[%emt 0:00:07]} 55. Qxa3 {[%emt 0:00:00]} h5 {[%emt 0:00:11]} 56. Qd3+ {[%emt 0:00:00]} Kc8 {[%emt 0:00:13]} 57. Qf5+ {[%emt 0:00:00]} 1-0